Workbook

Sheet NOTES
A1: FINANCIAL MATH
B2: Pn = Value at end of period n. Present is n=0.
B3: r = Rate of interest or growth per compounding period
B4: n = Number of integer compounding periods
B6: Future Value: | C6: Pn = P0 (1 + r)n
B7: Present Value: | C7: P0 = Pn / (1 + r)n = Pn (1 + r)-n
B8: Rate: | C8: r = (Pn/P0)1/n - 1
B9: # of Periods: | C9: n = ln(Pn/P0) / ln(1 + r)
A11: Time Line Steps
A12: 1 | B12: Draw a line with zero at left.
A13: 2 | B13: Label the scale with the compounding interval (years, days, months, etc.).
A14: 3 | B14: Add integer tick marks considering the time horizon (0, 1, 2, 3, … ).
A15: 4 | B15: Show dollar amounts & unknowns above tick marks.
A16: 5 | B16: Show the one-period rate (of interest, discount, COC, etc.).
B17: The rate MUST be compounded for the labeled period length.
A18: Time Line: | B18: <------------ 5-Period Annuity Due -----------------------> | G18: <---- 8-Period Withdrawal Ordinary Annuity deferred 4 years from time zero ------>
B19: ????? | C19: ????? | D19: ????? | E19: ????? | F19: ????? | G19: 25k | H19: 25k | I19: 25k | J19: 25k | K19: 25k | L19: 25k | M19: 25k | N19: 25k
B20: ! | C20: ! | D20: ! | E20: ! | F20: ! | G20: ! | H20: ! | I20: ! | J20: ! | K20: ! | L20: ! | M20: ! | N20: !
B21: 0 | C21: =1+B21 -> 1 | D21: =1+C21 -> 2 | E21: 3 | F21: 4 | G21: 5 | H21: 6 | I21: 7 | J21: 8 | K21: 9 | L21: 10 | M21: 11 | N21: 12 | O21: Years
B22: r = 12% | D22: <-- We assume that 12% is the rate compounded annually in this example

Sheet Page 14
A1: COMPUTING THE PRESENT VALUE
A2: Discount rate | B2: 0.1
A4: End of Year | B4: Cash flow | C4: Present value
A5: 1 | B5: 100 | C5: =B5/(1+$B$2)^A5 -> 90.90909091 | D5: =getformula(C5) -> <-- =B5/(1+$B$2)^A5
A6: 2 | B6: 100 | C6: =B6/(1+$B$2)^A6 -> 82.6446281 | D6: =getformula(C6) -> <-- =B6/(1+$B$2)^A6
A7: 3 | B7: 100 | C7: =B7/(1+$B$2)^A7 -> 75.13148009 | D7: =getformula(C7) -> <-- =B7/(1+$B$2)^A7
A8: 4 | B8: 100 | C8: =B8/(1+$B$2)^A8 -> 68.30134554 | D8: =getformula(C8) -> <-- =B8/(1+$B$2)^A8
A9: 5 | B9: 100 | C9: =B9/(1+$B$2)^A9 -> 62.09213231 | D9: =getformula(C9) -> <-- =B9/(1+$B$2)^A9
A11: Net present value
A12: =" Summing cells "&CHAR(COLUMN(C5)+64)&ROW(C5)&":"&CHAR(COLUMN(C9)+64)&ROW(C9) -> Summing cells C5:C9 | B12: =SUM(C5:C9) -> 379.0786769 | C12: =getformula(B12) -> <-- =SUM(C5:C9)
A13: Using Excel's NPV function | B13: =NPV(B2,B5:B9) -> 379.0786769 | C13: =getformula(B13) -> <-- =NPV(B2,B5:B9)
A14: Using Excel's PV function | B14: =PV(B2,5,-100) -> 379.0786769 | C14: =getformula(B14) -> <-- =PV(B2,5,-100)

Sheet Page 15
A1: COMPUTING THE PRESENT VALUE In this example the cash flows are not equal Either discount each cash flow separately or use Excel's NPV function Excel's PV doesn't work for this case
A2: Discount rate | B2: 0.1
A4: End of Year | B4: Cash flow | C4: Present value | D4: Present value of each cash flow
A5: 1 | B5: 100 | C5: =B5/(1+$B$2)^A5 -> 90.90909091 | D5: =getformula(C5) -> <-- =B5/(1+$B$2)^A5
A6: 2 | B6: 200 | C6: =B6/(1+$B$2)^A6 -> 165.2892562 | D6: =getformula(C6) -> <-- =B6/(1+$B$2)^A6
A7: 3 | B7: 300 | C7: =B7/(1+$B$2)^A7 -> 225.3944403 | D7: =getformula(C7) -> <-- =B7/(1+$B$2)^A7
A8: 4 | B8: 400 | C8: =B8/(1+$B$2)^A8 -> 273.2053821 | D8: =getformula(C8) -> <-- =B8/(1+$B$2)^A8
A9: 5 | B9: 500 | C9: =B9/(1+$B$2)^A9 -> 310.4606615 | D9: =getformula(C9) -> <-- =B9/(1+$B$2)^A9
A11: Net present value
A12: =" Summing cells "&CHAR(COLUMN(C5)+64)&ROW(C5)&":"&CHAR(COLUMN(C9)+64)&ROW(C9) -> Summing cells C5:C9 | B12: =SUM(C5:C9) -> 1065.258831 | C12: =getformula(B12) -> <-- =SUM(C5:C9)
A13: Using Excel's NPV function | B13: =NPV(B2,B5:B9) -> 1065.258831 | C13: =getformula(B13) -> <-- =NPV(B2,B5:B9)

Sheet Page 16
A1: COMPUTING THE NET PRESENT VALUE
A2: Discount rate | B2: 0.1
A4: End of Year | B4: Cash flow | C4: Present value
A5: 0 | B5: -250 | C5: =B5/(1+$B$2)^A5 -> -250 | D5: =getformula(C5) -> <-- =B5/(1+$B$2)^A5
A6: 1 | B6: 100 | C6: 90.90909091 | D6: <-- =B6/(1+$B$2)^A6
A7: 2 | B7: 100 | C7: 82.6446281 | D7: <-- =B7/(1+$B$2)^A7
A8: 3 | B8: 100 | C8: 75.13148009 | D8: <-- =B8/(1+$B$2)^A8
A9: 4 | B9: 100 | C9: 68.30134554 | D9: <-- =B9/(1+$B$2)^A9
A10: 5 | B10: 100 | C10: 62.09213231 | D10: <-- =B10/(1+$B$2)^A10
A12: Net present value
A13: =" Summing cells "&CHAR(COLUMN(C5)+64)&ROW(C5)&":"&CHAR(COLUMN(C10)+64)&ROW(C10) -> Summing cells C5:C10 | B13: =SUM(C5:C10) -> 129.0786769 | C13: =getformula(B13) -> <-- =SUM(C5:C10)
A14: Using Excel's NPV function | B14: =B5+NPV(B2,B6:B10) -> 129.0786769 | C14: =getformula(B14) -> <-- =B5+NPV(B2,B6:B10)

Sheet Page 18, top
A1: COMPUTING THE VALUE OF A FINITE ORDINARY ANNUITY
A2: Periodic payment, C | B2: 1000
A3: Number of future periods paid, n | B3: 5
A4: Discount rate, r | B4: 0.12
A5: Present value of annuity
A6: Using formula | B6: =B2*(1-1/(1+B4)^B3)/B4 -> 3604.776202 | C6: =getformula(B6) -> <-- =B2*(1-1/(1+B4)^B3)/B4
A7: Using Excel's PV function | B7: =PV(B4,B3,-B2) -> 3604.776202 | C7: =getformula(B7) -> <-- =PV(B4,B3,-B2)
A9: End of Period | B9: Annuity payment
A10: 1 | B10: =B2 -> 1000 | C10: =getformula(B10) -> <-- =B2
A11: 2 | B11: =B10 -> 1000
A12: 3 | B12: =B11 -> 1000
A13: 4 | B13: =B12 -> 1000
A14: 5 | B14: =B13 -> 1000
A16: Present value using Excel's NPV function | B16: =NPV(B4,B10:B14) -> 3604.776202 | C16: =getformula(B16) -> <-- =NPV(B4,B10:B14)

Sheet Page 18, middle
A1: COMPUTING THE VALUE OF AN INFINITE ORDINARY ANNUITY
A2: Periodic payment at end of period, C | B2: 1000
A3: Discount rate, r | B3: 0.12
A4: Present value of annuity | B4: =B2/B3 -> 8333.333333 | C4: =getformula(B4) -> <-- =B2/B3
C5: =SUM(C6:C145) -> 8333.332261 | D5: =COUNT(C6:C145) -> 140
B6: 1 | C6: =$B$2/(1+$B$3)^B6 -> 892.8571429
B7: =1+B6 -> 2 | C7: =$B$2/(1+$B$3)^B7 -> 797.1938776
B8: =1+B7 -> 3 | C8: 711.7802478
B9: 4 | C9: 635.5180784
B10: 5 | C10: 567.4268557
B11: 6 | C11: 506.6311212
B12: 7 | C12: 452.3492153
B13: 8 | C13: 403.883228
B14: 9 | C14: 360.610025
B15: =1+B14 -> 10 | C15: 321.9732366
B16: 11 | C16: 287.4761041
B17: 12 | C17: 256.6750929
B18: 13 | C18: 229.1741901
B19: 14 | C19: 204.6198126
B20: 15 | C20: 182.6962613
B21: 16 | C21: 163.1216618
B22: 17 | C22: 145.6443409
B23: 18 | C23: 130.0395901
B24: 19 | C24: 116.1067769
B25: 20 | C25: 103.6667651
B26: 21 | C26: 92.55961168
B27: 22 | C27: 82.64251043
B28: 23 | C28: 73.78795574
B29: 24 | C29: 65.88210334
B30: 25 | C30: 58.82330655
B31: 26 | C31: 52.52080942
B32: 27 | C32: 46.89357984
B33: 28 | C33: 41.86926771
B34: 29 | C34: 37.38327475
B35: 30 | C35: 33.37792388
B36: 31 | C36: 29.80171775
B37: 32 | C37: 26.60867656
B38: 33 | C38: 23.75774693
B39: 34 | C39: 21.21227405
B40: 35 | C40: 18.9395304
B41: 36 | C41: 16.910295
B42: 37 | C42: 15.09847768
B43: 38 | C43: 13.48078364
B44: 39 | C44: 12.03641396
B45: 40 | C45: 10.74679818
B46: 41 | C46: 9.59535552
B47: 42 | C47: 8.567281714
B48: 43 | C48: 7.649358673
B49: 44 | C49: 6.82978453
B50: 45 | C50: 6.098021902
B51: 46 | C51: 5.444662412
B52: 47 | C52: 4.861305725
B53: 48 | C53: 4.34045154
B54: 49 | C54: 3.875403161
B55: 50 | C55: 3.460181394
B56: 51 | C56: 3.089447673
B57: 52 | C57: 2.758435422
B58: 53 | C58: 2.46288877
B59: 54 | C59: 2.19900783
B60: 55 | C60: 1.963399848
B61: 56 | C61: 1.753035579
B62: 57 | C62: 1.565210338
B63: 58 | C63: 1.397509231
B64: 59 | C64: 1.247776099
B65: 60 | C65: 1.114085803
B66: 61 | C66: 0.9947194665
B67: 62 | C67: 0.8881423808
B68: 63 | C68: 0.7929842686
B69: 64 | C69: 0.7080216684
B70: 65 | C70: 0.6321622039
B71: 66 | C71: 0.5644305392
B72: 67 | C72: 0.5039558386
B73: 68 | C73: 0.4499605702
B74: 69 | C74: 0.4017505091
B75: 70 | C75: 0.3587058117
B76: 71 | C76: 0.3202730461
B77: 72 | C77: 0.2859580769
B78: 73 | C78: 0.2553197115
B79: =1+B78 -> 74 | C79: 0.2279640282
B80: 75 | C80: 0.2035393109
B81: 76 | C81: 0.1817315275
B82: 77 | C82: 0.1622602925
B83: 78 | C83: 0.1448752611
B84: 79 | C84: 0.1293529117
B85: 80 | C85: 0.1154936712
B86: 81 | C86: 0.1031193493
B87: 82 | C87: 0.09207084755
B88: 83 | C88: 0.08220611389
B89: 84 | C89: 0.07339831597
B90: 85 | C90: 0.06553421069
B91: 86 | C91: 0.05851268811
B92: 87 | C92: 0.05224347153
B93: 88 | C93: 0.04664595672
B94: 89 | C94: 0.04164817565
B95: 90 | C95: 0.03718587111
B96: 91 | C96: 0.03320167064
B97: 92 | C97: 0.02964434878
B98: 93 | C98: 0.02646816856
B99: 94 | C99: 0.02363229335
B100: 95 | C100: 0.02110026192
B101: 96 | C101: 0.01883951957
B102: 97 | C102: 0.01682099962
B103: 98 | C103: 0.01501874966
B104: 99 | C104: 0.01340959791
B105: 100 | C105: 0.01197285528
B106: 101 | C106: 0.01069004935
B107: 102 | C107: 0.009544686924
B108: 103 | C108: 0.008522041897
B109: 104 | C109: 0.007608965979
B110: 105 | C110: 0.006793719624
B111: 106 | C111: 0.006065821093
B112: 107 | C112: 0.00541591169
B113: 108 | C113: 0.004835635438
B114: 109 | C114: 0.004317531641
B115: 110 | C115: 0.003854938965
B116: 111 | C116: 0.00344190979
B117: 112 | C117: 0.003073133741
B118: 113 | C118: 0.002743869412
B119: 114 | C119: 0.002449883403
B120: 115 | C120: 0.002187395896
B121: 116 | C121: 0.00195303205
B122: 117 | C122: 0.001743778616
B123: 118 | C123: 0.001556945193
B124: 119 | C124: 0.001390129636
B125: 120 | C125: 0.001241187175
B126: 121 | C126: 0.001108202835
B127: 122 | C127: 0.0009894668171
B128: 123 | C128: 0.0008834525153
B129: 124 | C129: 0.0007887968887
B130: 125 | C130: 0.0007042829363
B131: 126 | C131: 0.0006288240503
B132: 127 | C132: 0.0005614500449
B133: 128 | C133: 0.0005012946829
B134: 129 | C134: 0.0004475845383
B135: 130 | C135: 0.0003996290521
B136: 131 | C136: 0.0003568116536
B137: 132 | C137: 0.0003185818336
B138: 133 | C138: 0.0002844480657
B139: 134 | C139: 0.0002539714873
B140: 135 | C140: 0.0002267602565
B141: 136 | C141: 0.0002024645147
B142: 137 | C142: 0.0001807718881
B143: =1+B142 -> 138 | C143: 0.0001614034715
B144: 139 | C144: 0.0001441102425
B145: 140 | C145: 0.0001286698593

Sheet Page 19, middle
A1: COMPUTING THE VALUE OF A FINITE GROWING ORDINARY ANNUITY
A2: First payment, end of period, C | B2: 1000
A3: Growth rate of payments, g | B3: 0.06 | C3: Try each of the 3 scenarios!
A4: Number of future periods paid, n | B4: 5
A5: Discount rate, r | B5: 0.12
A6: Present value of annuity
A7: Using formula | B7: =B2*(1-((1+B3)/(1+B5))^B4)/(B5-B3) -> 4010.914471 | C7: =getformula(B7) -> <-- =B2*(1-((1+B3)/(1+B5))^B4)/(B5-B3) | D7: <-- Algebraic Formula
A9: End of Period | B9: Annuity Payment | D9: Payment PV | E9: When does the pattern of values in D10:D14 increase/decrease/stay same?
A10: 1 | B10: =B2 -> 1000 | C10: =getformula(B10) -> <-- =B2 | D10: =ROUND(B10*(1+$B$5)^-A10,4) -> 892.8571 | E10: =getformula(D10) -> <-- =ROUND(B10*(1+$B$5)^-A10,4)
A11: 2 | B11: =$B$2*(1+$B$3)^(A11-1) -> 1060 | C11: =getformula(B11) -> <-- =$B$2*(1+$B$3)^(A11-1) | D11: =ROUND(B11*(1+$B$5)^-A11,4) -> 845.0255 | E11: <-- =ROUND(B11*(1+$B$5)^-A11,4)
A12: 3 | B12: =$B$2*(1+$B$3)^(A12-1) -> 1123.6 | C12: =getformula(B12) -> <-- =$B$2*(1+$B$3)^(A12-1) | D12: 799.7563 | E12: <-- =ROUND(B12*(1+$B$5)^-A12,4)
A13: 4 | B13: =$B$2*(1+$B$3)^(A13-1) -> 1191.016 | C13: =getformula(B13) -> <-- =$B$2*(1+$B$3)^(A13-1) | D13: 756.9122 | E13: <-- =ROUND(B13*(1+$B$5)^-A13,4)
A14: 5 | B14: =$B$2*(1+$B$3)^(A14-1) -> 1262.47696 | C14: =getformula(B14) -> <-- =$B$2*(1+$B$3)^(A14-1) | D14: 716.3633 | E14: <-- =ROUND(B14*(1+$B$5)^-A14,4)
A15: Sum | B15: =SUM(B10:B14) -> 5637.09296 | D15: Spark Line -->
A16: Present value using Excel's NPV function | B16: =NPV(B5,B10:B14) -> 4010.914471 | C16: =getformula(B16) -> <-- =NPV(B5,B10:B14) | D16: =SUM(D10:D14) -> 4010.9144 | E16: <-- =SUM(D10:D14)
A19: Equivalent value payment at end period 3 | B19: =B10*(1+B5)^2+B11*(1+B5)+B12+B13*(1+B5)^-1+B14*(1+B5)^-2 -> 5635.046046 | C19: =getformula(B19) -> <-- =B10*(1+B5)^2+B11*(1+B5)+B12+B13*(1+B5)^-1+B14*(1+B5)^-2
A20: Equivalent value payment at end period 0 | B20: =B19/(1+B5)^3 -> 4010.914471 | C20: =getformula(B20)&": Discount value at end of period 3" -> <-- =B19/(1+B5)^3: Discount value at end of period 3
A21: Equivalent value payment at end period 5 | B21: =B20*(1+B5)^5 -> 7068.60176 | C21: =getformula(B21)&": Compound PV 5 periods" -> <-- =B20*(1+B5)^5: Compound PV 5 periods
C23: All 3 of these values are the same considering their timing!

Sheet Page 19, bottom
A1: COMPUTING THE VALUE OF AN INFINITE GROWING ORDINARY ANNUITY
A2: First payment, end of period, C | B2: 1000 | D2: <-- Starting at end of date 1
A3: Growth rate of payments, g | B3: -0.03
A4: Discount rate, r | B4: 0.06
A5: Present value of annuity | B5: =B2/(B4-B3) -> 11111.11111 | C5: =getformula(B5) -> <-- =B2/(B4-B3)
C6: =B5-D7 -> 0.04476918114 | D6: <-- Difference
A7: Count: | B7: =COUNT(B8:B147) -> 140 | C7: Dollars | D7: =SUM(D8:D147) -> 11111.06634 | E7: <-- Sum
B8: 1 | C8: =B2 -> 1000 | D8: =C8/(1+$B$4)^B8 -> 943.3962264
B9: =1+B8 -> 2 | C9: =C8*(1+$B$3) -> 970 | D9: =C9/(1+$B$4)^B9 -> 863.2965468
B10: =1+B9 -> 3 | C10: =C9*(1+$B$3) -> 940.9 | D10: 789.9977834
B11: 4 | C11: 912.673 | D11: 722.9224999
B12: 5 | C12: 885.29281 | D12: 661.5422877
B13: 6 | C13: 858.7340257 | D13: 605.3736029
B14: 7 | C14: 832.9720049 | D14: 553.9739573
B15: 8 | C15: 807.9828448 | D15: 506.9384326
B16: 9 | C16: 783.7433594 | D16: 463.8964903
B17: 10 | C17: 760.2310587 | D17: 424.5090524
B18: 11 | C18: 737.4241269 | D18: 388.465831
B19: 12 | C19: 715.3014031 | D19: 355.4828831
B20: 13 | C20: 693.842361 | D20: 325.3003741
B21: 14 | C21: 673.0270902 | D21: 297.680531
B22: 15 | C22: 652.8362775 | D22: 272.405769
B23: 16 | C23: 633.2511891 | D23: 249.2769773
B24: 17 | C24: 614.2536535 | D24: 228.1119509
B25: 18 | C25: 595.8260439 | D25: 208.7439551
B26: 19 | C26: 577.9512625 | D26: 191.0204117
B27: 20 | C27: 560.6127247 | D27: 174.8016975
B28: 21 | C28: 543.7943429 | D28: 159.9600439
B29: 22 | C29: 527.4805126 | D29: 146.3785308
B30: 23 | C30: 511.6560973 | D30: 133.950165
B31: 24 | C31: 496.3064143 | D31: 122.5770377
B32: 25 | C32: 481.4172219 | D32: 112.1695534
B33: 26 | C33: 466.9747053 | D33: 102.6457234
B34: 27 | C34: 452.9654641 | D34: 93.93052047
B35: 28 | C35: 439.3765002 | D35: 85.9552876
B36: 29 | C36: 426.1952052 | D36: 78.65719714
B37: 30 | C37: 413.409349 | D37: 71.97875588
B38: 31 | C38: 401.0070685 | D38: 65.86735208
B39: 32 | C39: 388.9768565 | D39: 60.27484105
B40: 33 | C40: 377.3075508 | D40: 55.15716587
B41: 34 | C41: 365.9883243 | D41: 50.47401027
B42: 35 | C42: 355.0086745 | D42: 46.1884811
B43: 36 | C43: 344.3584143 | D43: 42.26681761
B44: 37 | C44: 334.0276619 | D44: 38.67812555
B45: 38 | C45: 324.006832 | D45: 35.39413376
B46: 39 | C46: 314.2866271 | D46: 32.38897146
B47: 40 | C47: 304.8580282 | D47: 29.63896445
B48: 41 | C48: 295.7122874 | D48: 27.1224486
B49: 42 | C49: 286.8409188 | D49: 24.81959919
B50: 43 | C50: 278.2356912 | D50: 22.71227473
B51: 44 | C51: 269.8886205 | D51: 20.78387404
B52: 45 | C52: 261.7919619 | D52: 19.01920549
B53: 46 | C53: 253.938203 | D53: 17.40436729
B54: 47 | C54: 246.3200569 | D54: 15.92663799
B55: 48 | C55: 238.9304552 | D55: 14.57437628
B56: 49 | C56: 231.7625416 | D56: 13.33692923
B57: 50 | C57: 224.8096653 | D57: 12.20454845
B58: 51 | C58: 218.0653753 | D58: 11.1683132
B59: 52 | C59: 211.5234141 | D59: 10.2200602
B60: 53 | C60: 205.1777117 | D60: 9.352319236
B61: 54 | C61: 199.0223803 | D61: 8.558254395
B62: 55 | C62: 193.0517089 | D62: 7.831610154
B63: 56 | C63: 187.2601576 | D63: 7.166662122
B64: 57 | C64: 181.6423529 | D64: 6.558171942
B65: 58 | C65: 176.1930823 | D65: 6.001346023
B66: 59 | C66: 170.9072899 | D66: 5.491797775
B67: 60 | C67: 165.7800712 | D67: 5.025513059
B68: 61 | C68: 160.806669 | D68: 4.598818554
B69: 62 | C69: 155.982469 | D69: 4.208352827
B70: 63 | C70: 151.3029949 | D70: 3.851039851
B71: 64 | C71: 146.763905 | D71: 3.52406477
B72: 65 | C72: 142.3609879 | D72: 3.224851723
B73: 66 | C73: 138.0901582 | D73: =C73/(1+$B$4)^B73 -> 2.951043558
B74: =1+B73 -> 67 | C74: =C73*(1+$B$3) -> 133.9474535 | D74: 2.700483256
B75: 68 | C75: 129.9290299 | D75: 2.471196942
B76: 69 | C76: 126.031159 | D76: 2.261378334
B77: 70 | C77: 122.2502242 | D77: 2.069374513
B78: 71 | C78: 118.5827175 | D78: 1.893672903
B79: 72 | C79: 115.025236 | D79: 1.732889355
B80: 73 | C80: 111.5744789 | D80: 1.58575724
B81: 74 | C81: 108.2272445 | D81: 1.451117474
B82: 75 | C82: 104.9804272 | D82: 1.327909387
B83: 76 | C83: 101.8310144 | D83: 1.215162363
B84: 77 | C84: 98.77608395 | D84: 1.1119882
B85: 78 | C85: 95.81280143 | D85: 1.017574108
B86: 79 | C86: 92.93841739 | D86: 0.9311763063
B87: 80 | C87: 90.15026486 | D87: 0.8521141671
B88: 81 | C88: 87.44575692 | D88: 0.779764851
B89: 82 | C89: 84.82238421 | D89: 0.7135584014
B90: 83 | C90: 82.27771268 | D90: 0.6529732541
B91: 84 | C91: 79.8093813 | D91: 0.5975321287
B92: 85 | C92: 77.41509987 | D92: 0.5467982688
B93: 86 | C93: 75.09264687 | D93: 0.5003720007
B94: 87 | C94: 72.83986746 | D94: 0.4578875855
B95: 88 | C95: 70.65467144 | D95: 0.4190103377
B96: 89 | C96: 68.5350313 | D96: 0.3834339883
B97: 90 | C97: 66.47898036 | D97: 0.3508782723
B98: 91 | C98: 64.48461095 | D98: 0.3210867209
B99: 92 | C99: 62.55007262 | D99: 0.2938246408
B100: 93 | C100: 60.67357044 | D100: 0.2688772656
B101: 94 | C101: 58.85336333 | D101: 0.2460480638
B102: 95 | C102: 57.08776243 | D102: 0.2251571905
B103: 96 | C103: 55.37512955 | D103: 0.2060400705
B104: 97 | C104: 53.71387567 | D104: 0.1885461023
B105: 98 | C105: 52.1024594 | D105: 0.172537471
B106: 99 | C106: 50.53938562 | D106: 0.157888063
B107: 100 | C107: 49.02320405 | D107: 0.1444824728
B108: 101 | C108: 47.55250793 | D108: 0.132215093
B109: 102 | C109: 46.12593269 | D109: 0.1209892832
B110: 103 | C110: 44.74215471 | D110: 0.1107166082
B111: 104 | C111: 43.39989007 | D111: 0.1013161415
B112: 105 | C112: 42.09789336 | D112: 0.0927138276
B113: 106 | C113: 40.83495656 | D113: 0.08484189884
B114: 107 | C114: 39.60990787 | D114: 0.0776383414
B115: 108 | C115: 38.42161063 | D115: 0.07104640675
B116: 109 | C116: 37.26896231 | D116: 0.06501416467
B117: 110 | C117: 36.15089344 | D117: 0.05949409408
B118: 111 | C118: 35.06636664 | D118: 0.05444270874
B119: 112 | C119: 34.01437564 | D119: 0.0498202146
B120: 113 | C120: 32.99394437 | D120: 0.04559019638
B121: 114 | C121: 32.00412604 | D121: 0.04171933065
B122: 115 | C122: 31.04400226 | D122: 0.03817712333
B123: 116 | C123: 30.11268219 | D123: 0.03493566946
B124: 117 | C124: 29.20930172 | D124: 0.03196943337
B125: 118 | C125: 28.33302267 | D125: 0.02925504752
B126: 119 | C126: 27.48303199 | D126: 0.02677112839
B127: 120 | C127: 26.65854103 | D127: 0.02449810806
B128: 121 | C128: 25.8587848 | D128: 0.02241808001
B129: 122 | C129: 25.08302126 | D129: 0.02051465813
B130: 123 | C130: 24.33053062 | D130: 0.01877284753
B131: 124 | C131: 23.6006147 | D131: 0.01717892651
B132: 125 | C132: 22.89259626 | D132: 0.01572033841
B133: 126 | C133: 22.20581837 | D133: 0.0143855927
B134: 127 | C134: 21.53964382 | D134: 0.01316417445
B135: 128 | C135: 20.89345451 | D135: 0.01204646153
B136: 129 | C136: 20.26665087 | D136: 0.01102364876
B137: 130 | C137: 19.65865135 | D137: =C137/(1+$B$4)^B137 -> 0.01008767858
B138: =1+B137 -> 131 | C138: =C137*(1+$B$3) -> 19.06889181 | D138: 0.009231177566
B139: 132 | C139: 18.49682505 | D139: 0.008447398339
B140: 133 | C140: 17.9419203 | D140: 0.007730166405
B141: 134 | C141: 17.40366269 | D141: 0.007073831521
B142: 135 | C142: 16.88155281 | D142: 0.006473223185
B143: 136 | C143: 16.37510623 | D143: 0.005923609895
B144: 137 | C144: 15.88385304 | D144: 0.005420661885
B145: 138 | C145: 15.40733745 | D145: 0.004960417008
B146: 139 | C146: 14.94511732 | D146: 0.004539249526
B147: 140 | C147: 14.4967638 | D147: 0.004153841548

Sheet Page 21, top
A1: INTERNAL RATE OF RETURN
A2: End of Year | B2: Cash flow
A3: 0 | B3: -800
A4: 1 | B4: 200
A5: 2 | B5: 250
A6: 3 | B6: 300
A7: 4 | B7: 350
A8: 5 | B8: 400
A10: Internal rate of return | B10: =IRR(B3:B8) -> 0.221603098 | C10: =getformula(B10) -> <-- =IRR(B3:B8)

Sheet Page 21, bottom
A1: INTERNAL RATE OF RETURN
A2: Discount rate | B2: 0.12
A4: End of Year | B4: Cash flow
A5: 0 | B5: -800
A6: 1 | B6: 200
A7: 2 | B7: 250
A8: 3 | B8: 300
A9: 4 | B9: 350
A10: 5 | B10: 400
A12: Net present value (NPV) | B12: =B5+NPV(B2,B6:B10) -> 240.806042 | C12: =getformula(B12) -> <-- =B5+NPV(B2,B6:B10)

Sheet Page22
A1: INTERNAL RATE OF RETURN
A2: Discount rate | B2: 0.2216030979
A4: End of Year | B4: Cash flow
A5: 0 | B5: -800
A6: 1 | B6: 200
A7: 2 | B7: 250
A8: 3 | B8: 300
A9: 4 | B9: 350
A10: 5 | B10: 400
A12: Net present value (NPV) | B12: =B5+NPV(B2,B6:B10) -> 4.823584732e-08 | C12: =getformula(B12) -> <-- =B5+NPV(B2,B6:B10)

Sheet Page23
A1: INTERNAL RATE OF RETURN | D1: Loan Principal | E1: =-B3 -> 800 | F1: End of Year | G1: Pmt | H1: Interest | I1: Principal Reduction | J1: Ending Balance
A2: End of Year | B2: Cash flow | D2: Interest Rate | E2: =B10 -> 0.221603098 | F2: 0 | J2: =E1 -> 800
A3: 0 | B3: -800 | D3: Term | E3: =A8 -> 5 | F3: =1+F2 -> 1 | G3: =B4 -> 200 | H3: =$E$2*J2 -> 177.2824784 | I3: =G3-H3 -> 22.71752164 | J3: =J2-I3 -> 777.2824784
A4: 1 | B4: 200 | F4: =1+F3 -> 2 | G4: =B5 -> 250 | H4: =$E$2*J3 -> 172.2482052 | I4: =G4-H4 -> 77.75179481 | J4: =J3-I4 -> 699.5306836
A5: 2 | B5: 250 | F5: =1+F4 -> 3 | G5: 300 | H5: 155.0181666 | I5: =G5-H5 -> 144.9818334 | J5: =J4-I5 -> 554.5488501
A6: 3 | B6: 300 | F6: =1+F5 -> 4 | G6: 350 | H6: 122.8897432 | I6: =G6-H6 -> 227.1102568 | J6: =J5-I6 -> 327.4385933
A7: 4 | B7: 350 | F7: =1+F6 -> 5 | G7: 400 | H7: 72.56140667 | I7: =G7-H7 -> 327.4385933 | J7: =J6-I7 -> -2.688983614e-08
A8: 5 | B8: 400
A10: Internal rate of return | B10: =IRR(B3:B8) -> 0.221603098 | C10: =getformula(B10) -> <-- =IRR(B3:B8)
A12: USING THE IRR IN A LOAN TABLE
D13: Division of cash flow between investment income and return of principal
A14: Year | B14: Investment at beginning of year | C14: Cash flow at end of year | D14: Income | E14: Return of principal
A15: 1 | B15: =-B3 -> 800 | C15: =B4 -> 200 | D15: =$B$10*B15 -> 177.2824784 | E15: =C15-D15 -> 22.71752164 | F15: =getformula(E15) -> <-- =C15-D15
A16: 2 | B16: =B15-E15 -> 777.2824784 | C16: =B5 -> 250 | D16: =$B$10*B16 -> 172.2482052 | E16: =C16-D16 -> 77.75179481
A17: 3 | B17: =B16-E16 -> 699.5306836 | C17: =B6 -> 300 | D17: =$B$10*B17 -> 155.0181666 | E17: =C17-D17 -> 144.9818334
A18: 4 | B18: =B17-E17 -> 554.5488501 | C18: =B7 -> 350 | D18: =$B$10*B18 -> 122.8897432 | E18: =C18-D18 -> 227.1102568
A19: 5 | B19: =B18-E18 -> 327.4385933 | C19: =B8 -> 400 | D19: =$B$10*B19 -> 72.56140667 | E19: =C19-D19 -> 327.4385933
A20: 6 | B20: =B19-E19 -> -2.688983614e-08

Sheet Pages24-26
A1: USING A LOAN TABLE TO FIND THE IRR
A2: IRR? | B2: 0.15
D4: Division of cash flow between investment income and return of principal
A5: Year | B5: Principal at beginning of year | C5: Cash flow at end of year | D5: Income | E5: Principal
A6: 1 | B6: 1000 | C6: 300 | D6: =$B$2*B6 -> 150 | E6: =C6-D6 -> 150 | F6: =getformula(E6) -> <-- =C6-D6
A7: 2 | B7: =B6-E6 -> 850 | C7: 200 | D7: =$B$2*B7 -> 127.5 | E7: =C7-D7 -> 72.5
A8: 3 | B8: =B7-E7 -> 777.5 | C8: 150 | D8: =$B$2*B8 -> 116.625 | E8: =C8-D8 -> 33.375
A9: 4 | B9: =B8-E8 -> 744.125 | C9: 600 | D9: =$B$2*B9 -> 111.61875 | E9: =C9-D9 -> 488.38125
A10: 5 | B10: =B9-E9 -> 255.74375 | C10: 900 | D10: =$B$2*B10 -> 38.3615625 | E10: =C10-D10 -> 861.6384375
A11: 6 | B11: =B10-E10 -> -605.8946875
A15: Direct calculation of IRR
A16: Year | B16: Cash flow
A17: 0 | B17: =-B6 -> -1000
A18: 1 | B18: =C6 -> 300
A19: 2 | B19: =C7 -> 200
A20: 3 | B20: 150
A21: 4 | B21: 600
A22: 5 | B22: 900
A24: IRR | B24: =IRR(B17:B22) -> 0.2443607426 | C24: =getformula(B24) -> <-- =IRR(B17:B22)

Sheet Page 26, bottom
A1: USING EXCEL'S RATE FUNCTION TO COMPUTE THE IRR
A2: Initial investment | B2: 1000
A3: Periodic cash flow | B3: 100
A4: Number of payments | B4: 30
A5: IRR | B5: =RATE(B4,B3,-B2) -> 0.09307339772 | C5: =getformula(B5) -> <-- =RATE(B4,B3,-B2)

Sheet Pages 27-28
A1: MULTIPLE INTERNAL RATES OF RETURN
A2: Discount rate | B2: 0.06
A3: NPV | B3: =NPV(B2,B7:B11)+B6 -> -3.985436268 | C3: =getformula(B3) -> <-- =NPV(B2,B7:B11)+B6 | G3: DATA TABLE
G4: Discount rate | H4: NPV
A5: Year | B5: Cash flow | H5: =B3 -> -3.985436268 | I5: ="Table header, "&getformula(H5) -> Table header, <-- =B3
A6: 0 | B6: =-145 -> -145 | G6: 0 | H6: -20
A7: 1 | B7: 100 | G7: 0.03 | H7: -10.50757542
A8: 2 | B8: 100 | G8: 0.06 | H8: -3.985436268
A9: 3 | B9: 100 | G9: 0.09 | H9: 0.2408564733
A10: 4 | B10: 100 | G10: 0.12 | H10: 2.69254934
A11: 5 | B11: -275 | G11: 0.15 | H11: 3.774234064
G12: 0.18 | H12: 3.801146008
G13: 0.21 | H13: 3.019700069
G14: 0.24 | H14: 1.623039049
G15: 0.27 | H15: -0.2371229015
G16: 0.3 | H16: -2.44142766
G17: 0.33 | H17: -4.895886048
G18: 0.36 | H18: -7.526469985
G19: 0.39 | H19: -10.27490734
G21: Note: For a discussion of how to create data tables in Excel, see Chapter 31.
A29: Identifying the two IRRs
A30: First IRR | B30: =IRR(B6:B11,0) -> 0.08782827385 | C30: =getformula(B30) -> <-- =IRR(B6:B11,0)
A31: Second IRR | B31: =IRR(B6:B11,0.3) -> 0.2664950072 | C31: =getformula(B31) -> <-- =IRR(B6:B11,0.3)

Sheet Page 28, bottom
A1: BOND CASH FLOWS: NPV CROSSES X-AXIS ONLY ONCE, SO THERE IS ONLY ONE IRR
A2: End of Year | B2: "Promised" Cash flow | E2: Data table: Effect of
A3: 0 | B3: -800 | C3: <--Bond Price | E3: discount rate on NPV
A4: 1 | B4: 100 | C4: <-- Interest | D4: Rate: | E4: =B13 -> 0.1436420844 | F4: =NPV(E4,B4:B11)+B3 -> 7.67840902e-10 | G4: =getformula(F4)&", table header" -> <-- =NPV(E4,B4:B11)+B3, table header
A5: 2 | B5: 100 | C5: <-- Interest | E5: 0 | F5: 1000
A6: 3 | B6: 100 | C6: <-- Interest | E6: 0.02 | F6: 786.0385152
A7: 4 | B7: 100 | C7: <-- Interest | E7: 0.04 | F7: 603.9646925
A8: 5 | B8: 100 | C8: <-- Interest | E8: 0.06 | F8: 448.3917524
A9: 6 | B9: 100 | C9: <-- Interest | E9: 0.08 | F9: 314.9327789
A10: 7 | B10: 100 | C10: <-- Interest | E10: 0.1 | F10: 200
A11: 8 | B11: 1100 | C11: <-- Interest + Principal | E11: 0.12 | F11: 100.6472047
E12: 0.14 | F12: 14.44544424
A13: IRR=YTM | B13: =IRR(B3:B11) -> 0.1436420844 | C13: =getformula(B13) -> <-- =IRR(B3:B11) | E13: 0.16 | F13: -60.6154537
A14: NPV@IRR | B14: =NPV(B13,B4:B11)+B3 -> 7.67840902e-10 | C14: =getformula(B14) -> <-- =NPV(B13,B4:B11)+B3 | E14: 0.18 | F14: -126.2052606
E15: 0.2 | F15: -183.7159803
A16: Yield to Maturity is the rate of return promised based on
A17: market price & holding the bond to maturity.
A19: Expected return is less than the YTM if there is
A20: a probability of default as with corporate debt.
A22: Investors' discount rate (their required rate or cost of
A23: capital) depends on substitute investment rates which
A24: depend on things like risk, liquidity and tax status.

Sheet Page 29
A1: FLAT PAYMENT SCHEDULES
A2: Loan principal | B2: 10000
A3: Interest rate | B3: 0.07
A4: Loan term | B4: 6 | C4: <-- Number of years over which loan is repaid
A5: Annual payment | B5: =PMT(B3,B4,-B2) -> 2097.957998 | C5: =getformula(B5) -> <-- =PMT(B3,B4,-B2)
E7: Split payment into:
B8: End of Year | C8: Principal at beginning of year | D8: Payment at end of year | E8: Interest | F8: Return of principal
B9: 1 | C9: =B2 -> 10000 | D9: =$B$5 -> 2097.957998 | E9: =$B$3*C9 -> 700 | F9: =D9-E9 -> 1397.957998
B10: 2 | C10: =C9-F9 -> 8602.042002 | D10: 2097.957998 | E10: 602.1429402 | F10: 1495.815057
B11: 3 | C11: 7106.226945 | D11: 2097.957998 | E11: 497.4358862 | F11: 1600.522111
B12: 4 | C12: 5505.704834 | D12: 2097.957998 | E12: 385.3993383 | F12: 1712.558659
B13: 5 | C13: 3793.146174 | D13: 2097.957998 | E13: 265.5202322 | F13: 1832.437765
B14: 6 | C14: 1960.708409 | D14: 2097.957998 | E14: 137.2495886 | F14: 1960.708409
B15: 7 | C15: 0

Sheet Page 30
A1: FLAT PAYMENT SCHEDULES
A2: Loan principal | B2: 10000
A3: Interest rate | B3: 0.07
A4: Loan term | B4: 6 | C4: <-- Number of years over which loan is repaid
A5: Annual payment | B5: =PMT(B3,B4,-B2) -> 2097.957998 | C5: =getformula(B5) -> <-- =PMT(B3,B4,-B2)
E7: Split payment into:
B8: End of Year | C8: Principal at beginning of year | D8: Payment at end of year | E8: Interest | F8: Return of principal
B9: 1 | C9: =B2 -> 10000 | D9: =$B$5 -> 2097.957998 | E9: =$B$3*C9 -> 700 | F9: =D9-E9 -> 1397.957998
B10: 2 | C10: =C9-F9 -> 8602.042002 | D10: 2097.957998 | E10: 602.1429402 | F10: 1495.815057
B11: 3 | C11: 7106.226945 | D11: 2097.957998 | E11: 497.4358862 | F11: 1600.522111
B12: 4 | C12: 5505.704834 | D12: 2097.957998 | E12: 385.3993383 | F12: 1712.558659
B13: 5 | C13: 3793.146174 | D13: 2097.957998 | E13: 265.5202322 | F13: 1832.437765
B14: 6 | C14: 1960.708409 | D14: 2097.957998 | E14: 137.2495886 | F14: 1960.708409
B15: 7 | C15: 0

Sheet Page 31
A1: SIMPLE FUTURE VALUE | F1: Using End of Year Notation
A2: Interest | B2: 0.1 | F2: Interest | G2: =B2 -> 0.1
A4: Year | B4: Account balance, beginning of year | C4: Interest earned during year | D4: Total in account, end year | F4: Year End | G4: Account balance After Interest | H4: Interest | I4: =RIGHT(getformula(G6),LEN(getformula(G6))-5)&" = Previous Balance + Interest" -> =G5+H6 = Previous Balance + Interest
A5: 1 | B5: 1000 | C5: =$B$2*B5 -> 100 | D5: =C5+B5 -> 1100 | E5: =getformula(D5) -> <-- =C5+B5 | F5: 0 | G5: =B5 -> 1000 | H5: 0 | I5: =getformula(H5) -> <-- 0
A6: 2 | B6: =D5 -> 1100 | C6: =$B$2*B6 -> 110 | D6: =C6+B6 -> 1210 | E6: =getformula(D6) -> <-- =C6+B6 | F6: =1+F5 -> 1 | G6: =G5+H6 -> 1100 | H6: =G5*$G$2 -> 100 | I6: <-- =G5*$G$2
A7: 3 | B7: =D6 -> 1210 | C7: 121 | D7: 1331 | F7: =1+F6 -> 2 | G7: =G6+H7 -> 1210 | H7: =G6*$G$2 -> 110
A8: 4 | B8: 1331 | C8: 133.1 | D8: 1464.1 | F8: 3 | G8: 1331 | H8: 121
A9: 5 | B9: 1464.1 | C9: 146.41 | D9: 1610.51 | F9: 4 | G9: 1464.1 | H9: 133.1
A10: 6 | B10: 1610.51 | C10: 161.051 | D10: 1771.561 | F10: 5 | G10: 1610.51 | H10: 146.41
A11: 7 | B11: 1771.561 | C11: 177.1561 | D11: 1948.7171 | F11: 6 | G11: 1771.561 | H11: 161.051
A12: 8 | B12: 1948.7171 | C12: 194.87171 | D12: 2143.58881 | F12: 7 | G12: 1948.7171 | H12: 177.1561
A13: 9 | B13: 2143.58881 | C13: 214.358881 | D13: 2357.947691 | F13: 8 | G13: 2143.58881 | H13: 194.87171
A14: 10 | B14: 2357.947691 | C14: 235.7947691 | D14: 2593.74246 | F14: 9 | G14: 2357.947691 | H14: 214.358881
A15: 11 | B15: 2593.74246 | F15: 10 | G15: 2593.74246 | H15: 235.7947691
A17: A simpler way | C17: =B5*(1+B2)^10 -> 2593.74246 | D17: =getformula(C17) -> <-- =B5*(1+B2)^10 | F17: A simpler way | H17: =G5*(1+G2)^10 -> 2593.74246 | I17: =getformula(H17) -> <-- =G5*(1+G2)^10

Sheet Page 32
A1: FUTURE VALUE WITH ANNUAL DEPOSITS: ANNUITY DUE
A2: Interest | B2: 0.1
A3: Annual deposit | B3: 1000 | C3: <-- Made today and at beginning of each of next 9 years
A4: Number of deposits | B4: 10
A6: Table below uses End of Year framework
A7: END of Year | B7: Deposit | C7: Interest earned | D7: Account Balance
A8: 0 | B8: 1000 | D8: =B8 -> 1000 | E8: =getformula(D8) -> <-- =B8
A9: 1 | B9: 1000 | C9: =D8*$B$2 -> 100 | D9: =B9+C9+D8 -> 2100 | E9: =getformula(D9) -> <-- =B9+C9+D8
A10: 2 | B10: 1000 | C10: 210 | D10: =B10+C10+D9 -> 3310 | E10: =getformula(D10) -> <-- =B10+C10+D9
A11: 3 | B11: 1000 | C11: 331 | D11: 4641
A12: 4 | B12: 1000 | C12: 464.1 | D12: 6105.1
A13: 5 | B13: 1000 | C13: 610.51 | D13: 7715.61
A14: 6 | B14: 1000 | C14: 771.561 | D14: 9487.171
A15: 7 | B15: 1000 | C15: 948.7171 | D15: 11435.8881
A16: 8 | B16: 1000 | C16: 1143.58881 | D16: 13579.47691
A17: 9 | B17: 1000 | C17: 1357.947691 | D17: 15937.4246
A18: 10 | B18: 0 | C18: 1593.74246 | D18: 17531.16706 | E18: <-- Ending Balance = FV(10)
A20: Future value | B20: =FV(B2,B4,-B3,,1) -> 17531.16706 | C20: =getformula(B20) -> <-- =FV(B2,B4,-B3,,1)

Sheet Retirement picture
A1: A RETIREMENT PROBLEM
A2: You wish to make five equal annual payments over the next five
A3: years in your retirement account. The deposits will be made at the
A4: beginning of each year and earn 8% APR. You plan on withdrawing
A5: eight $30,000 amounts starting at the end of year 5. What deposit
A6: amount for each of the first five years will leave a balance of zero in
A7: the account after the last $30,000 withdrawal?
A9: Start the solution to this problem with a time line.
A10: Dollar amounts above the line plot directly above the end
A11: of period number below the line.
A12: Time Line: | B12: <----- 5-Period Annuity Due -----------------------> | G12: <------- 8-Period Withdrawal Ordinary Annuity deferred 4 years from time zero --------->
B13: ????? | C13: ????? | D13: ????? | E13: ????? | F13: ????? | G13: =-$B$16 -> -30000 | H13: -30000 | I13: -30000 | J13: -30000 | K13: -30000 | L13: -30000 | M13: -30000 | N13: -30000
B14: ! | C14: ! | D14: ! | E14: ! | F14: ! | G14: ! | H14: ! | I14: ! | J14: ! | K14: ! | L14: ! | M14: ! | N14: !
B15: 0 | C15: =1+B15 -> 1 | D15: =1+C15 -> 2 | E15: 3 | F15: 4 | G15: 5 | H15: 6 | I15: 7 | J15: 8 | K15: 9 | L15: 10 | M15: 11 | N15: 12 | O15: Years
A16: Annual withdrawal | B16: 30000 | C16: <-- Input
A17: Number of withdrawals | B17: 8 | C17: <-- Input
A18: Number of equal deposits | B18: 5 | C18: <-- Input
A19: Interest rate | B19: 0.08 | C19: <-- Input

Sheet Page 34
A1: A RETIREMENT PROBLEM: SOLVER SOLUTION
A2: Interest | B2: 0.08
A3: Annual deposit | B3: 48000 | C3: <-- Use SOLVER to set ending balance to zero while changing this cell!
A4: Annual retirement withdrawal | B4: 30000
A7: Note: This problem has 5 deposits and 8 annual withdrawals, all made at the beginning of the year. The end of year 12 is the last year of the retirement plan; if the annual deposit is correctly computed, the balance at the end of year 12 after the withdrawal should be zero.
A9: Table below uses End of Year framework | G9: Time Line:
A10: END of Year | B10: Deposit | C10: Interest earned | D10: Account Balance | G10: =$B$11 -> 48000 | H10: =$B$12 -> 48000 | I10: =$B$13 -> 48000 | J10: =$B$14 -> 48000 | K10: =$B$15 -> 48000 | L10: =$B$16 -> -30000 | M10: =$B$17 -> -30000 | N10: =$B$18 -> -30000 | O10: =$B$19 -> -30000 | P10: =$B$20 -> -30000 | Q10: =$B$21 -> -30000 | R10: =$B$22 -> -30000 | S10: =$B$23 -> -30000
A11: 0 | B11: =$B$3 -> 48000 | D11: =B11 -> 48000 | E11: =getformula(D11) -> <-- =B11 | G11: ! | H11: ! | I11: ! | J11: ! | K11: ! | L11: ! | M11: ! | N11: ! | O11: ! | P11: ! | Q11: ! | R11: ! | S11: !
A12: 1 | B12: =$B$3 -> 48000 | C12: =D11*$B$2 -> 3840 | D12: =D11+C12+B12 -> 99840 | E12: =getformula(D12) -> <-- =D11+C12+B12 | G12: 0 | H12: =1+G12 -> 1 | I12: =1+H12 -> 2 | J12: 3 | K12: 4 | L12: 5 | M12: 6 | N12: 7 | O12: 8 | P12: 9 | Q12: 10 | R12: 11 | S12: 12
A13: 2 | B13: 48000 | C13: =D12*$B$2 -> 7987.2 | D13: =D12+C13+B13 -> 155827.2 | E13: =getformula(D13) -> <-- =D12+C13+B13
A14: 3 | B14: 48000 | C14: 12466.176 | D14: 216293.376
A15: 4 | B15: 48000 | C15: 17303.47008 | D15: 281596.8461
A16: 5 | B16: =-$B$4 -> -30000 | C16: 22527.74769 | D16: 274124.5938
A17: 6 | B17: =-$B$4 -> -30000 | C17: 21929.9675 | D17: 266054.5613
A18: 7 | B18: -30000 | C18: 21284.3649 | D18: 257338.9262
A19: 8 | B19: -30000 | C19: 20587.11409 | D19: 247926.0403
A20: 9 | B20: -30000 | C20: 19834.08322 | D20: 237760.1235
A21: 10 | B21: -30000 | C21: 19020.80988 | D21: 226780.9334
A22: 11 | B22: -30000 | C22: 18142.47467 | D22: 214923.408
A23: 12 | B23: -30000 | C23: 17193.87264 | D23: 202117.2807 | E23: <-- Ending Balance = FV(12)

Sheet Page 38 (Replaced)
A1: A RETIREMENT PROBLEM: FORMULA SOLUTION
A2: Time Line: | B2: <----- 5-Period Annuity Due -----------------------> | G2: <--- 8-Period Withdrawal Annuity deferred 4 years from time zero ---------------->
B3: =$B$18 -> 29386.551 | C3: =$B$18 -> 29386.551 | D3: =$B$18 -> 29386.551 | E3: =$B$18 -> 29386.551 | F3: =$B$18 -> 29386.551 | G3: =-$B$13 -> -30000 | H3: -30000 | I3: -30000 | J3: -30000 | K3: -30000 | L3: -30000 | M3: -30000 | N3: -30000
B4: ! | C4: ! | D4: ! | E4: ! | F4: ! | G4: ! | H4: ! | I4: ! | J4: ! | K4: ! | L4: ! | M4: ! | N4: !
B5: 0 | C5: =1+B5 -> 1 | D5: =1+C5 -> 2 | E5: 3 | F5: 4 | G5: 5 | H5: 6 | I5: 7 | J5: 8 | K5: 9 | L5: 10 | M5: 11 | N5: 12 | O5: Years
E6: FV(4) = | F6: =PV(B16,B14,-B13) -> 172399.1683 | G6: =getformula(F6)&" = Value of withdrawal stream at end of year "&FIXED(B15,0)-1 -> <-- =PV(B16,B14,-B13) = Value of withdrawal stream at end of year 4
E7: PV(0) = | F7: =F6/(1+B16)^(B15-1) -> 126718.5353 | G7: =getformula(F7)&" = Value of withdrawal stream at time zero" -> <-- =F6/(1+B16)^(B15-1) = Value of withdrawal stream at time zero
A13: Annual withdrawal | B13: 30000
A14: Number of withdrawals | B14: 8
A15: Number of equal deposits | B15: 5
A16: Interest rate | B16: 0.08
A17: PV of Withdrawals | B17: =PV(B16,B14,-B13)/(1+B16)^(B15-1) -> 126718.5353 | C17: =getformula(B17) -> <-- =PV(B16,B14,-B13)/(1+B16)^(B15-1)
A18: Annual deposit needed | B18: =PMT(B16,B15,-B17,,1) -> 29386.551 | C18: =getformula(B18) -> <-- =PMT(B16,B15,-B17,,1)
A19: Answer in One Formula | B19: =PMT(B16,B15,-PV(B16,B14,-B13)/(1+B16)^(B15-1),,1) -> 29386.551 | C19: =getformula(B19) -> <-- =PMT(B16,B15,-PV(B16,B14,-B13)/(1+B16)^(B15-1),,1)
A21: Calculating the amount of the annual payment that leaves
A22: the ending balance zero is easily solved. First calculate the
A23: present value of the withdrawal deferred annuity. Use that
A24: present value to calculate the payment for an annuity due
A25: using the PMT function.

Sheet Page 39
A1: MULTIPLE COMPOUNDING PERIODS
A2: Initial deposit | B2: 1000
A3: Interest rate | B3: 0.05
A4: Number of compounding periods per year | B4: 2
A5: Interest per compounding period | B5: =B3/B4 -> 0.025 | C5: =getformula(B5) -> <-- =B3/B4
A6: Accretion in one year | B6: =B2*(1+B5)^B4 -> 1050.625 | C6: =getformula(B6) -> <-- =B2*(1+B5)^B4
A7: Continuous compounding with Exp | B7: =B2*EXP(B3) -> 1051.271096 | C7: =getformula(B7) -> <-- =B2*EXP(B3)
A24: Compounding periods per year | B24: End-year accretion
A25: 1 | B25: =$B$2*(1+$B$3/A25)^A25 -> 1050 | C25: =getformula(B25) -> <-- =$B$2*(1+$B$3/A25)^A25
A26: 2 | B26: =$B$2*(1+$B$3/A26)^A26 -> 1050.625 | C26: =getformula(B26) -> <-- =$B$2*(1+$B$3/A26)^A26
A27: 10 | B27: 1051.140132
A28: 20 | B28: 1051.205503
A29: 50 | B29: 1051.244832
A30: 100 | B30: 1051.25796
A31: 150 | B31: 1051.262338
A32: 300 | B32: 1051.266717
A33: 800 | B33: 1051.269454

Sheet Page 40
A1: CONTINUOUS DISCOUNTING
A2: APR --> | B2: 0.08 | D2: Equivalent APR for Annual Compounding:
D3: =EXP(B2)-1 -> 0.08328706767 | E3: =getformula(D3) -> <-- =EXP(B2)-1
A4: End of Year | B4: Cash flow | C4: Continously discounted PV
A5: 1 | B5: 100 | C5: =B5*EXP(-$B$2*A5) -> 92.31163464 | D5: =getformula(C5) -> <-- =B5*EXP(-$B$2*A5)
A6: 2 | B6: 200 | C6: =B6*EXP(-$B$2*A6) -> 170.4287578 | D6: =getformula(C6) -> <-- =B6*EXP(-$B$2*A6)
A7: 3 | B7: 300 | C7: =B7*EXP(-$B$2*A7) -> 235.9883583
A8: 4 | B8: 400 | C8: =B8*EXP(-$B$2*A8) -> 290.4596148
A9: 5 | B9: 500 | C9: =B9*EXP(-$B$2*A9) -> 335.160023
A11: Present value (Continuous) | C11: =SUM(C5:C9) -> 1124.348389 | D11: =getformula(C11) -> <-- =SUM(C5:C9)
A12: Present value (Discrete) | C12: =NPV(D3,B5:B9) -> 1124.348389 | D12: =getformula(C12) -> <-- =NPV(D3,B5:B9)

Sheet Page 41
A1: CALCULATING RETURNS FROM PRICES | F1: REPLACE VALUES IN TABLE BELOW WITH FORMULAS!
A2: Initial deposit | B2: 1000 | F2: Discrete: Monthly Compounding | K2: Continuous Compounding & Discounting
A3: End-of-year value | B3: 1200 | F3: Value or | G3: 0.01 | H3: Disc Rate = | I3: 0.01 | J3: <-- Monthly | L3: Disc Rate = | M3: 0.009950330853 | N3: 0.009950330853 | O3: <-- Monthly
A4: Number of compounding periods | B4: 2 | E4: Month | F4: Price | G4: ROR | I4: PV(Col F) | J4: FV | K4: ROR | M4: PV | N4: FV
A5: Implied APR with compounding | B5: =((B3/B2)^(1/B4)-1)*B4 -> 0.19089023 | C5: =getformula(B5) -> <-- =((B3/B2)^(1/B4)-1)*B4 | E5: 0 | F5: 100 | H5: 100 | I5: 100 | J5: 100 | L5: 100 | M5: 100 | N5: 100
A6: 1-Year HPR (Holding Period Return) | B6: =B3/B2-1 -> 0.2 | C6: =getformula(B6) -> <-- =B3/B2-1 | E6: 1 | F6: 101 | G6: 0.01 | I6: 100 | J6: 101 | K6: 0.009950330853 | M6: 100 | N6: 101
A7: Continuous rate of return | B7: =LN(B3/B2) -> 0.1823215568 | C7: =getformula(B7) -> <-- =LN(B3/B2) | E7: 2 | F7: 102.01 | G7: 0.01 | I7: 100 | J7: 102.01 | K7: 0.009950330853 | M7: 100 | N7: 102.01
A8: EAR (Effective Annual Rate) | B8: =B3/B2-1 -> 0.2 | C8: =getformula(B8) -> <-- =B3/B2-1 | E8: 3 | F8: 103.0301 | G8: 0.01 | I8: 100 | J8: 103.0301 | K8: 0.009950330853 | M8: 100 | N8: 103.0301
A9: Implied annual interest rate with n compounding periods | E9: 4 | F9: 104.060401 | G9: 0.01 | I9: 100 | J9: 104.060401 | K9: 0.009950330853 | M9: 100 | N9: 104.060401
A10: Number of compounding periods | B10: APR | E10: 5 | F10: 105.101005 | G10: 0.01 | I10: 100 | J10: 105.101005 | K10: 0.009950330853 | M10: 100 | N10: 105.101005
B11: =B5 -> 0.19089023 | C11: =getformula(B11)&", data table formula cell" -> <-- =B5, data table formula cell | E11: 6 | F11: 106.1520151 | G11: 0.01 | I11: 100 | J11: 106.1520151 | K11: 0.009950330853 | M11: 100 | N11: 106.1520151
A12: 1 | B12: 0.2 | E12: 7 | F12: 107.2135352 | G12: 0.01 | I12: 100 | J12: 107.2135352 | K12: 0.009950330853 | M12: 100 | N12: 107.2135352
A13: 2 | B13: 0.19089023 | E13: 8 | F13: 108.2856706 | G13: 0.01 | I13: 100 | J13: 108.2856706 | K13: 0.009950330853 | M13: 100 | N13: 108.2856706
A14: 4 | B14: 0.1865405576 | E14: 9 | F14: 109.3685273 | G14: 0.01 | I14: 100 | J14: 109.3685273 | K14: 0.009950330853 | M14: 100 | N14: 109.3685273
A15: 8 | B15: 0.1844150018 | E15: 10 | F15: 110.4622125 | G15: 0.01 | I15: 100 | J15: 110.4622125 | K15: 0.009950330853 | M15: 100 | N15: 110.4622125
A16: 20 | B16: 0.1831551166 | E16: 11 | F16: 111.5668347 | G16: 0.01 | I16: 100 | J16: 111.5668347 | K16: 0.009950330853 | M16: 100 | N16: 111.5668347
A17: 1000 | B17: 0.1823381784 | E17: 12 | F17: 112.682503 | G17: 0.01 | H17: 112.682503 | I17: 100 | J17: 112.682503 | K17: 0.009950330853 | L17: 112.682503 | M17: 100 | N17: 112.682503
F18: Annual | G18: 0.12 | H18: 0.1268250301 | J18: Continuous--> | K18: 0.1194039702 | L18: 0.1194039702 | M18: <-- Annual
A19: APR (Annual Percentage Rate) is a "Nominal" or "Stated" rate for one year. | F19: Discrete | G19: APR | H19: HPR/EAR | M19: 0.1268250301 | N19: <-- EAR
A20: If the APR is 12% the monthly rate is 1%.
F21: EAR = | G21: 0.1268250301
A22: HPR (Holding Period Return) is the rate earned over some arbitrary period. | F22: Monthly ROR = | G22: 0.01
A23: With HPR the starting and ending values ignore elapsed time. | F23: APR = | G23: 0.12
B24: HPR = Ending Value/Starting Value -1 = | C24: =B3/B2-1 -> 0.2
A26: EAR is the one-year HPR (same as IRR using one-year periods) = | D26: =C24 -> 0.2

Sheet Page 42
A1: USING XIRR TO COMPUTE THE ANNUALIZED INTERNAL RATE OF RETURN
A2: Date | B2: Cash flow
A3: 2014-01-01 | B3: -1000
A4: 2014-03-03 | B4: 150
A5: 2014-07-04 | B5: 100
A6: 2014-10-12 | B6: 50
A7: 2014-12-25 | B7: 1000
A9: IRR | B9: =XIRR(B3:B7,A3:A7) -> 0.371882695 | C9: =getformula(B9) -> <-- =XIRR(B3:B7,A3:A7)
A10: Wrong --> | B10: =IRR(B3:B7,0.15) -> 0.07978991297 | C10: =getformula(B10) -> <-- =IRR(B3:B7,0.15)

Sheet Page 43
A1: USING XNPV TO COMPUTE THE NET PRESENT VALUE | D1: Daily rate | E1: =RATE(365,0,-1,1+B2) -> 0.0003105377557 | F1: =getformula(E1) -> <-- =RATE(365,0,-1,1+B2)
A2: Annual discount rate | B2: 0.12 | C2: <-- EAR! | D2: Daily rate | E2: =(1+B2)^(1/365)-1 -> 0.0003105377557 | F2: =getformula(E2) -> <-- =(1+B2)^(1/365)-1 | G2: Using
D3: Table below uses the daily rate (above): | G3: PV
A4: Date | B4: Cash flow | D4: Day | E4: PV | G4: Function
A5: 2014-01-01 | B5: -1000 | D5: =A5-$A$5 -> 0 | E5: =B5*(1+$E$2)^-D5 -> -1000 | F5: =getformula(E5) -> <-- =B5*(1+$E$2)^-D5 | G5: =PV($E$2,D5,0,-B5) -> -1000
A6: 2015-03-03 | B6: 100 | D6: =A6-$A$5 -> 426 | E6: =B6*(1+$E$2)^-D6 -> 87.61056872 | F6: =getformula(E6) -> <-- =B6*(1+$E$2)^-D6 | G6: =PV($E$2,D6,0,-B6) -> 87.61056872
A7: 2015-07-04 | B7: 195 | D7: 549 | E7: 164.4391834 | F7: <-- =B7*(1+$E$2)^-D7 | G7: 164.4391834
A8: 2016-10-12 | B8: 350 | D8: 1015 | E8: 255.3885887 | F8: <-- =B8*(1+$E$2)^-D8 | G8: 255.3885887
A9: 2017-12-25 | B9: 800 | D9: 1454 | E9: 509.3624898 | F9: <-- =B9*(1+$E$2)^-D9 | G9: 509.3624898
E10: =SUM(E5:E9) -> 16.80083062 | F10: =getformula(E10) -> <-- =SUM(E5:E9)
A11: Net present value | B11: =XNPV(B2,B5:B9,A5:A9) -> 16.80083062 | C11: =getformula(B11) -> <-- =XNPV(B2,B5:B9,A5:A9)
A13: Note that XNPV has a different syntax from NPV ! XNPV requires all the cash flows, including the initial cash flow, whereas NPV assumes that the first cash flow occurs one period hence.

Sheet Page 44, top
A1: PROBLEM WITH XNPV XNPV does not work with zero or negative discount rates
A2: Discount rate | B2: -0.03
A3: Net present value | B3: =XNPV(B2,B7:B13,A7:A13) ->  | C3: =getformula(B3) -> <-- =XNPV(B2,B7:B13,A7:A13)
B4: =nXNPV(B2,B7:B13,A7:A13) -> -194.8737661 | C4: =getformula(B4) -> <-- =@nXNPV(B2,B7:B13,A7:A13)
A6: Date | B6: Cash flow
A7: 2014-06-30 | B7: -500
A8: 2015-02-14 | B8: 100
A9: 2016-02-14 | B9: 300
A10: 2017-02-14 | B10: 400
A11: 2018-02-14 | B11: 600
A12: 2019-02-14 | B12: 800
A13: 2020-02-14 | B13: -1800

Sheet Page 44, bottom
A1: PROBLEMS WITH XIRR
A2: Discount rate | B2: 0.22
A3: Net present value | B3: =XNPV(B2,B9:B15,A9:A15) -> 64.96186268 | C3: =getformula(B3) -> <-- =XNPV(B2,B9:B15,A9:A15)
A4: IRR | B4: =XIRR(B9:B15,A9:A15) ->  | C4: =getformula(B4)&" , no Guess" -> <-- =XIRR(B9:B15,A9:A15) , no Guess
B5: =XIRR(B9:B15,A9:A15,35%) ->  | C5: =getformula(B5)&", Guess = 35%" -> <-- =XIRR(B9:B15,A9:A15,35%), Guess = 35%
B6: =XIRR(B9:B15,A9:A15,5%) ->  | C6: =getformula(B6)&" , Guess = 5%" -> <-- =XIRR(B9:B15,A9:A15,5%) , Guess = 5%
A8: Date | B8: Cash flow | D8: Data table: XNPV as function of discount rate
A9: 2014-06-30 | B9: -500
A10: 2015-02-14 | B10: 100 | D10: Rate | E10: =B3 -> 64.96186268 | F10: =getformula(E10)&", data table header" -> <-- =B3, data table header
A11: 2016-02-14 | B11: 300 | D11: 0.001 | E11: -97.36643387
A12: 2017-02-14 | B12: 400 | D12: 0.025 | E12: -42.75258846
A13: 2018-02-14 | B13: 600 | D13: 0.049 | E13: -2.310474759
A14: 2019-02-14 | B14: 800 | D14: 0.073 | E14: 26.83707585
A15: 2020-02-14 | B15: -1800 | D15: 0.097 | E15: 46.9832778
D16: 0.121 | E16: 59.96125836
D17: 0.145 | E17: 67.24017625
D18: 0.169 | E18: 70.00016374
D19: 0.193 | E19: 69.19102187
D20: 0.217 | E20: 65.5783879
D21: 0.241 | E21: 59.78019617
D22: 0.265 | E22: 52.29558383
D23: 0.289 | E23: 43.52789016
D24: 0.313 | E24: 33.8030193
D25: 0.337 | E25: 23.38414858
D26: 0.361 | E26: 12.48354596
D27: 0.385 | E27: 1.272091769
D28: 0.409 | E28: -10.11302823

Sheet Page 45
A1: NXIRR FIXES THE XIRR BUG
A2: Discount rate | B2: -0.03
A3: IRR | B3: =nXIRR(B8:B14,A8:A14) -> 0.05063148499 | C3: =getformula(B3)&" , no Guess" -> <-- =@nXIRR(B8:B14,A8:A14) , no Guess
B4: =nXIRR(B8:B14,A8:A14,35%) -> 0.3876950073 | C4: =getformula(B4)&", Guess = 35%" -> <-- =@nXIRR(B8:B14,A8:A14,35%), Guess = 35%
B5: =nXIRR(B8:B14,A8:A14,5%) -> 0.05063148499 | C5: =getformula(B5)&" , Guess = 5%" -> <-- =@nXIRR(B8:B14,A8:A14,5%) , Guess = 5%
A7: Date | B7: Cash flow
A8: 2014-06-30 | B8: -500
A9: 2015-02-14 | B9: 100
A10: 2016-02-14 | B10: 300
A11: 2017-02-14 | B11: 400
A12: 2018-02-14 | B12: 600
A13: 2019-02-14 | B13: 800
A14: 2020-02-14 | B14: -1800
